Cogmind - Beta 13 --- EXPLORER MODE // 2024.06.29 @ 07:27:53 Player: Kino Result: Destroyed by G-50 Soldier with Heavy Laser Performance ------------- Evolutions (1) 500 Regions Visited (6) 1200 Robots Destroyed (41) 205 Value Destroyed (919) 919 Prototype IDs (0) 0 Alien Tech Used (0) 0 Bonus (0) 0 TOTAL SCORE: 2824 Bonus ------- None Cogmind --------- Core Integrity 0/400 Matter 415/450 Energy 250/250 System Corruption 1% Temperature Warm (101) Movement Walking (750) Ox9 Location -8/Mines Parts ------- > --- POWER (1) -------- Ion Engine > --- PROPULSION (2) --- Aluminum Leg > --- UTILITY (5) ------ Huge Storage Unit Compact Matter Pod Targeting Computer Hardened Light Armor Plating > --- WEAPON (2) ------- Beam Rifle Assault Rifle > --- INVENTORY (25) --- Ion Engine Aluminum Leg Aluminum Leg Sensor Array Seismic Detector ECM Suite Medium Laser Light Cannon EMP Blaster Mace Peak State ------------ > --- POWER ------------ Improved Ion Engine > --- PROPULSION ------- Aluminum Leg Improved Aluminum Leg > --- UTILITY ---------- Huge Storage Unit Compact Matter Pod Targeting Computer Core Shielding Weapon Shielding > --- WEAPON ----------- Beam Rifle EMP Blaster > --- INVENTORY -------- Ion Engine Ion Engine Sensor Array Seismic Detector ECM Suite Hardened Light Armor Plating Medium Laser Assault Rifle Light Cannon Mace [Rating: 17] Favorites ----------- Power Improved Ion Engine Engine Improved Ion Engine Propulsion Aluminum Leg Leg Aluminum Leg Utility Weapon Shielding Storage Large Storage Unit Processor Targeting Computer Protection Weapon Shielding Weapon Assault Rifle Energy Gun Beam Rifle Ballistic Gun Assault Rifle Ballistic Cannon Light Cannon Launcher EMP Blaster Build | -11 -10 -10 -9 -9 -9 -8 ------- Run | Yrd Mat Min Mat Min Exi Min Slots Evolved 3 | . 1 . 2 . . . Power . | . . . . . . . Propulsion . | . . . . . . . Utility 3 | . 1 . 2 . . . Weapon . | . . . . . . . Parts Attached 29 | 7 2 . 8 10 2 . Power 4 | 1 . . 1 1 1 . Engine 4 | 1 . . 1 1 1 . Core . | . . . . . . . Reactor . | . . . . . . . Propulsion 7 | 2 . . 2 3 . . Treads . | . . . . . . . Leg 7 | 2 . . 2 3 . . Wheel . | . . . . . . . Hover . | . . . . . . . Flight . | . . . . . . . Utility 11 | 2 2 . 4 2 1 . Device . | . . . . . . . Storage 4 | 1 1 . . 2 . . Processor 1 | 1 . . . . . . Hackware . | . . . . . . . Protection 6 | . 1 . 4 . 1 . Artifact . | . . . . . . . Weapon 7 | 2 . . 1 4 . . Energy Gun 1 | . . . . 1 . . Energy Cannon . | . . . . . . . Ballistic Gun 4 | 2 . . 1 1 . . Ballistic Cannon 1 | . . . . 1 . . Launcher 1 | . . . . 1 . . Special Weapon . | . . . . . . . Impact Weapon . | . . . . . . . Slashing Weapon . | . . . . . . . Piercing Weapon . | . . . . . . . Special Melee Weapon . | . . . . . . . Unidentified Prototypes . | . . . . . . . Parts Lost 9 | . . . . 8 . 1 Power 2 | . . . . 2 . . Propulsion 2 | . . . . 2 . . Utility 3 | . . . . 2 . 1 Weapon 2 | . . . . 2 . . Highest Loss Streak 6 | . . . . 6 . 1 To Critical Strikes . | . . . . . . . Average Slot Usage (%) 89 | . 100 100 96 79 100 100 Engine 9 | . 12 12 9 7 10 10 Leg 15 | . 25 25 19 7 20 20 Storage 12 | . 12 12 10 13 20 20 Processor 10 | . 12 12 10 10 10 10 Protection 20 | . 12 12 27 20 20 20 Energy Gun 4 | . . . . 8 10 10 Ballistic Gun 13 | . 25 25 20 4 10 10 Launcher 3 | . . . . 6 . . Naked Turns . | . . . . . . . Heaviest Build 97 | 17 28 28 35 97 97 97 Greatest Support 23 | 20 20 20 20 23 23 23 Greatest Overweight (x) 32 | . 1 1 2 32 4 4 Average Overweight (x) 2 | . . 1 1 10 4 4 Largest Inventory Capacity 25 | 10 15 15 15 25 25 25 Average Capacity 19 | 9 12 15 15 24 25 25 Most Carried 15 | 6 10 10 15 15 11 10 Average Carried 11 | 3 7 10 11 11 10 10 Final Capacity 25 | 10 15 15 15 25 25 25 Final Carried 15 | 5 10 10 15 12 10 10 Class Distribution -------------------- 100% | Hacker-Mutant Dominant Class ---------------- Hacker-Mutant | -10/Materials Hacker-Mutant | -10/Mines Hacker-Mutant | -9/Materials Hacker-Mutant | -9/Mines Hacker-Mutant | -9/Exiles Hacker-Mutant | -8/Mines Resources | -11 -10 -10 -9 -9 -9 -8 ----------- Run | Yrd Mat Min Mat Min Exi Min Matter Collected 979 | 150 90 98 389 252 . . Remotely . | . . . . . . . Salvage Created 1358 | . 23 34 765 536 . . Parts 93 | . 1 4 55 33 . . Haulers Intercepted . | . . . . . . . Recyclers Shooed 5 | . . . 5 . . . Parts Field Recycled . | . . . . . . . Retrieved Matter . | . . . . . . . Parts Self-Destructed . | . . . . . . . Prevented . | . . . . . . . Kills | -11 -10 -10 -9 -9 -9 -8 ------- Run | Yrd Mat Min Mat Min Exi Min Combat Hostiles Destroyed 34 | . . 2 15 17 . . Guns 29 | . . 2 15 12 . . Cannons 1 | . . . . 1 . . AOE 4 | . . . . 4 . . Classes Destroyed 12 | . 1 1 5 5 . . Worker 3 | . . . 2 1 . . Builder 1 | . . . . 1 . . Tunneler 1 | . . . . 1 . . Recycler 3 | . . . 2 1 . . Mechanic 1 | . . . 1 . . . Watcher 4 | . 1 . 3 . . . Swarmer 11 | . . 2 6 3 . . Grunt 10 | . . . 5 5 . . Duelist 1 | . . . . 1 . . Sentry 4 | . . . 4 . . . Demolisher 2 | . . . . 2 . . Assembled 6 | . . . . 6 . . Best Kill Streak 7 | . 1 2 7 5 . . Combat Bots Only 5 | . . 2 5 3 . . Max Kills in Single Turn 2 | . 1 1 1 2 . . Gunslinging . | . . . . . . . Exploded 1 | . . . . 1 . . Melee . | . . . . . . . Uniques/NPCs Destroyed . | . . . . . . . Combat | -11 -10 -10 -9 -9 -9 -8 -------- Run | Yrd Mat Min Mat Min Exi Min Hostile Shots Fired 208 | . . 11 86 106 . 5 Missed 43 | . . 1 22 20 . . Damage Taken 1624 | . . 54 482 1029 . 59 Core 400 | . . . 83 285 . 32 Absorbed by Shields . | . . . . . . . Redirected to Shielding 174 | . . 7 37 128 . 2 Ignored by Resistances 1013 | . . 36 310 632 . 35 Core Remaining (%) 100 | 100 . 100 . . . . Volleys Fired 102 | . 4 4 51 40 . 3 Largest 2 | . 2 2 2 2 . 2 Hottest 89 | . 40 40 43 89 . 76 Shots Fired 188 | . 8 8 102 64 . 6 Gun 175 | . 8 8 102 51 . 6 Cannon 3 | . . . . 3 . . Launcher 10 | . . . . 10 . . Special . | . . . . . . . Kinetic 167 | . 8 8 102 46 . 3 Thermal 11 | . . . . 8 . 3 Explosive . | . . . . . . . Electromagnetic 10 | . . . . 10 . . Robot Hit Streak 28 | . 5 4 28 25 . 16 Robot Miss Streak 2 | . 1 1 2 1 . 1 Penetration Max . | . . . . . . . Secondary Targets 3 | . . . 1 2 . . Max Gunslinging Chain 1 | . . . 1 1 . . Shots Hit Robots 153 | . 6 5 85 52 . 5 Core Hits 79 | . 1 2 38 36 . 2 Critical Kills . | . . . . . . . Critical Parts Destroyed . | . . . . . . . Critical Strikes . | . . . . . . . Melee Attacks . | . . . . . . . Impact . | . . . . . . . Slashing . | . . . . . . . Piercing . | . . . . . . . Sneak Attacks . | . . . . . . . Combat Hostiles . | . . . . . . . Follow-up Attacks . | . . . . . . . Damage Inflicted 2365 | . 84 58 1170 978 . 75 Guns 1938 | . 84 58 1132 589 . 75 Cannons 35 | . . . . 35 . . Explosions 354 | . . . . 354 . . Melee . | . . . . . . . Ramming 38 | . . . 38 . . . Kinetic 1841 | . 84 58 1132 522 . 45 Thermal 139 | . . . . 109 . 30 Explosive . | . . . . . . . Electromagnetic 347 | . . . . 347 . . Impact . | . . . . . . . Slashing . | . . . . . . . Piercing . | . . . . . . . Highest Corruption 1 | . . . . 1 1 1 Average Corruption 1 | . . . . 1 1 1 Corruption Purged . | . . . . . . . Corruption Blocked . | . . . . . . . Effects 7 | . . . . 6 . 1 Message Errors 1 | . . . . 1 . . Matter Fused 1 | . . . . 1 . . Heat Flow Errors 1 | . . . . 1 . . Energy Discharges 2 | . . . . 2 . . Parts Rejected 1 | . . . . . . 1 Data Loss (minor) 1 | . . . . 1 . . Overload Shots . | . . . . . . . Overflow Damage . | . . . . . . . Projectiles . | . . . . . . . Explosions . | . . . . . . . Melee . | . . . . . . . Knockbacks . | . . . . . . . Impact . | . . . . . . . Kinetic . | . . . . . . . Secondary . | . . . . . . . Self-Inflicted Damage 68 | . . . . 68 . . Shots 8 | . . . . 8 . . Rammed . | . . . . . . . Targets Rammed 10 | . . . 10 . . . Kicked 10 | . . . 10 . . . Crushed . | . . . . . . . Highest Temperature 96 | . . . 8 96 . 92 Average Temperature 22 | . . . 5 23 . 54 Received Heat Transfer 575 | . . . 258 272 . 45 Siege Activations . | . . . . . . . Robots Corrupted . | . . . . . . . Combat Hostiles . | . . . . . . . Parts Fried 2 | . . . . 2 . . Impact Corruptions . | . . . . . . . Robots Melted . | . . . . . . . Combat Hostiles . | . . . . . . . Parts Melted . | . . . . . . . Heat Transferred 383 | . . . . 309 . 74 Parts Sabotaged . | . . . . . . . Parts Stolen . | . . . . . . . Parts Stripped . | . . . . . . . Power Chain Reactions 3 | . . . . 3 . . Alert | -11 -10 -10 -9 -9 -9 -8 ------- Run | Yrd Mat Min Mat Min Exi Min Peak Influence 362 | . 22 71 362 123 . . Initial 6 | . . 6 . 1 . . Average 47 | . 18 27 113 17 . . Maximum Alert Level 1 | . . . 1 . . . Low Security (%) 94 | 100 100 100 82 100 . 100 Level 1 5 | . . . 17 . . . Level 2 . | . . . . . . . Level 3 . | . . . . . . . Level 4 . | . . . . . . . Level 5 . | . . . . . . . High Security . | . . . . . . . Max Security . | . . . . . . . Squads Dispatched 2 | . . . 1 1 . . Investigation . | . . . . . . . Extermination . | . . . . . . . Reinforcement 2 | . . . 1 1 . . Assault . | . . . . . . . Garrison . | . . . . . . . Intercept . | . . . . . . . Searches Triggered . | . . . . . . . Construction Impeded 1 | . . . . 1 . . Haulers Reinforced . | . . . . . . . Active Scanning Responses . | . . . . . . . Cargo Convoy Interrupts . | . . . . . . . Stealth | -11 -10 -10 -9 -9 -9 -8 --------- Run | Yrd Mat Min Mat Min Exi Min Distress Signals 3 | . . . 3 . . . Communications Jammed . | . . . . . . . Distress Signals . | . . . . . . . Times Spotted 58 | . 3 2 23 29 . 1 Peak Tracking Total 9 | . 1 2 5 9 . 2 Tactical Retreats 2 | . . . 1 1 . . Traps | -11 -10 -10 -9 -9 -9 -8 ------- Run | Yrd Mat Min Mat Min Exi Min Traps Triggered 3 | . . . 3 . . . Indirectly . | . . . . . . . Trap Hack Attempts . | . . . . . . . Triggered . | . . . . . . . Disarmed . | . . . . . . . Reprogrammed . | . . . . . . . Reused . | . . . . . . . Traps Extracted . | . . . . . . . Installed . | . . . . . . . Triggered . | . . . . . . . Machines | -11 -10 -10 -9 -9 -9 -8 ---------- Run | Yrd Mat Min Mat Min Exi Min Machines Disabled . | . . . . . . . Max in Single Turn . | . . . . . . . Machines Repaired . | . . . . . . . Machines Dismantled . | . . . . . . . Machines Sabotaged . | . . . . . . . Overloaded Fab Kills . | . . . . . . . Hacking | -11 -10 -10 -9 -9 -9 -8 --------- Run | Yrd Mat Min Mat Min Exi Min Machines Accessed . | . . . . . . . Terminals . | . . . . . . . Fabricators . | . . . . . . . Repair Stations . | . . . . . . . Recycling Units . | . . . . . . . Scanalyzers . | . . . . . . . Garrison Access . | . . . . . . . Total Hacks . | . . . . . . . Successful . | . . . . . . . Failed . | . . . . . . . Catastrophic . | . . . . . . . Database Lockouts . | . . . . . . . Manual . | . . . . . . . Terminals . | . . . . . . . Fabricators . | . . . . . . . Repair Stations . | . . . . . . . Recycling Units . | . . . . . . . Scanalyzers . | . . . . . . . Garrison Access . | . . . . . . . Terminal Hacks . | . . . . . . . Fabricator Hacks . | . . . . . . . Repair Station Hacks . | . . . . . . . Recycling Unit Hacks . | . . . . . . . Scanalyzer . | . . . . . . . Garrison Access Hacks . | . . . . . . . Unauthorized Hacks . | . . . . . . . Terminals . | . . . . . . . Fabricators . | . . . . . . . Repair Stations . | . . . . . . . Recycling Units . | . . . . . . . Scanalyzers . | . . . . . . . Garrison Access . | . . . . . . . Data Cores Recovered . | . . . . . . . Used . | . . . . . . . Hacking Detections . | . . . . . . . Full Trace Events . | . . . . . . . Feedback Events . | . . . . . . . Feedback Blocked . | . . . . . . . Robot Schematics Acquired . | . . . . . . . Robots Built . | . . . . . . . Authchips . | . . . . . . . Time . | . . . . . . . Total Robot Build Rating . | . . . . . . . Part Schematics Acquired . | . . . . . . . Parts Built . | . . . . . . . Authchips . | . . . . . . . Time . | . . . . . . . Total Part Build Rating . | . . . . . . . Parts Repaired . | . . . . . . . Time . | . . . . . . . Parts Recycled . | . . . . . . . Recycled Matter . | . . . . . . . Retrieved Matter . | . . . . . . . Retrieved Components . | . . . . . . . Parts Scanalyzed . | . . . . . . . Part Schematics Acquired . | . . . . . . . Parts Damaged . | . . . . . . . Bothacking | -11 -10 -10 -9 -9 -9 -8 ------------ Run | Yrd Mat Min Mat Min Exi Min Used RIF Installer . | . . . . . . . Robots Hacked . | . . . . . . . Non-combat . | . . . . . . . Combat . | . . . . . . . Robot Hacks Applied . | . . . . . . . Relay Couplers Released . | . . . . . . . Fabnet Peak Effective % . | . . . . . . . Robots Rewired . | . . . . . . . Allies Hacked . | . . . . . . . Hacks Repelled . | . . . . . . . Allies | -11 -10 -10 -9 -9 -9 -8 -------- Run | Yrd Mat Min Mat Min Exi Min Total Allies . | . . . . . . . Largest Group . | . . . . . . . Highest-Rated Group . | . . . . . . . Highest-Rated Ally . | . . . . . . . Total Orders . | . . . . . . . Ally Attacks . | . . . . . . . Total Damage . | . . . . . . . Kills . | . . . . . . . Allies Corrupted . | . . . . . . . Allies Melted . | . . . . . . . Intel | -11 -10 -10 -9 -9 -9 -8 ------- Run | Yrd Mat Min Mat Min Exi Min Robot Analysis Total . | . . . . . . . Derelict Logs Recovered 1 | . . . . 1 . . Drone Launches . | . . . . . . . Drone Recoveries . | . . . . . . . Exploration | -11 -10 -10 -9 -9 -9 -8 ------------- Run | Yrd Mat Min Mat Min Exi Min Turns Passed 4303 | 74 255 619 1248 1905 158 44 Spaces Moved 1395 | 55 155 320 550 272 34 9 Core 84 | 15 . . . 69 . . Treads . | . . . . . . . Legs 1311 | 40 155 320 550 203 34 9 Wheels . | . . . . . . . Hover . | . . . . . . . Flight . | . . . . . . . Fastest Speed 50 | 50 120 190 190 190 400 400 Average Speed 280 | 100 151 190 192 656 400 400 Slowest Speed 1650 | 120 190 190 260 1650 400 400 Overloaded Moves . | . . . . . . . Propulsion Burnouts . | . . . . . . . Robots Hopped . | . . . . . . . Cave-ins Triggered . | . . . . . . . Exploration Rate (%) 27 | 4 26 54 46 52 9 4 Regions Visited 6 Branch Regions 4 Pre-discovered Areas . | . . . . . . . Known Exits Taken 6 | 1 1 1 1 1 1 . Unknown Exits Taken . | . . . . . . . Scrap Searched 1 | . . . . 1 . . Spaces Dug . | . . . . . . . Terrain Destroyed 9 | . . . . 9 . . Melee . | . . . . . . . Projectile . | . . . . . . . AOE 9 | . . . . 9 . . Terrain Rammed . | . . . . . . . Walls Destroyed . | . . . . . . . Machines Disabled . | . . . . . . . Actions | -11 -10 -10 -9 -9 -9 -8 --------- Run | Yrd Mat Min Mat Min Exi Min Total 1601 | 73 168 323 632 334 59 12 Wait 29 | . . . . 7 22 . Move 1389 | 54 154 319 549 271 33 9 Hop . | . . . . . . . Pick Up 35 | 12 7 . 12 3 1 . Fast Attach . | . . . . . . . Attach 23 | 7 1 . 6 7 2 . Detach 1 | . . . . 1 . . Swap 6 | . 1 . 2 3 . . Drop 6 | . 1 . 2 2 1 . Fire 102 | . 4 4 51 40 . 3 Melee . | . . . . . . . Ram . | . . . . . . . Kick 10 | . . . 10 . . . Crush . | . . . . . . . Escape Stasis . | . . . . . . . Rewire . | . . . . . . . Trap . | . . . . . . . Miscellaneous . | . . . . . . . Route ------- -11/Scrapyard -10/Materials -10/Mines -9/Materials -9/Mines -9/Exiles -8/Mines History --------- Turn | Location | Event 5 | -11/Scrapyard | Identified exit to Materials 5 | -11/Scrapyard | Discovered exit to Materials (range 15) 75 | -11/Scrapyard | Entered Materials 75 | -10/Materials | Evolved 1 slot: Utility x1 130 | -10/Materials | Identified exit to Mines 130 | -10/Materials | Discovered exit to Mines (range 16) 304 | -10/Materials | Build established: Hacker-Mutant 330 | -10/Materials | Entered Mines 335 | -10/Mines | Met a Derelict bent on vengeance 376 | -10/Mines | Identified exit to Materials 376 | -10/Mines | Discovered exit to Materials (range 5) 949 | -10/Mines | Entered Materials 949 | -9/Materials | Evolved 2 slots: Utility x2 2180 | -9/Materials | Identified exit to Mines 2180 | -9/Materials | Discovered exit to Mines (range 9) 2197 | -9/Materials | Entered Mines 2342 | -9/Mines | Assembled infested the area 2401 | -9/Mines | Core integrity fell below 50% 2427 | -9/Mines | Lost 6 parts (1p2n1u2w) 3975 | -9/Mines | Core integrity fell below 20% 4089 | -9/Mines | Deemed a non-threat by the Exiles lab entrance 4089 | -9/Mines | Identified exit to Exiles 4089 | -9/Mines | Discovered exit to Exiles (range 5) 4102 | -9/Mines | Entered Exiles 4216 | -9/Exiles | Identified exit to Mines 4216 | -9/Exiles | Discovered exit to Mines (range 14) 4260 | -9/Exiles | Entered Mines 4304 | -8/Mines | Destroyed by G-50 Soldier with Heavy Laser Last Messages --------------- 03734_ Acquired 14 matter. 03736_ U-05 Engineer lays Concrete. 03948_ System corrupted: Matter fused (-5). 03988_ Weapon Shielding destroyed. 03991_ G-34 Mercenary destroyed. 04001_ G-47 Trooper destroyed. 04011_ Acquired Aluminum Leg. 04023_ Acquired 31 matter. 04089_ "No threat detected, you may enter." 04089_ EXIT=FOUND: EXILES LOCATION=EXILES GOAL=ESCAPE 04210_ Acquired Rigged Nuclear Core. 04211_ Dropped Rigged Nuclear Core. 04216_ EXIT=FOUND: MINES LOCATION=MINES GOAL=ESCAPE 04300_ Core Shielding destroyed. 04302_ System corrupted: Imp. Aluminum Leg rejected. Map ----- +----------------------------------------------------+ | ????????????????????????????????????? | | ????????????????????????????????????? | | ????????????????????????????????????? | | ????????????????????????????????????? | | ????????????????????????????????????? | | ????????????????????????????????????? | | ????????????????????????????????????? | | ????????????????????????????????????? | | ????????????????????????????????????? | | ????????????????????????????????????? | | ????????????????????????????????????? | | ????????????????????????????????????? | | ????????????????????????????????????? | | ????????????????????????????????????? | | ????????????????????????????????????? | | ????????????????????????#???????????? | | ????????????????????????# ??????????? | | ????????????????????????? ??????????? | | ????????????????????????? ####??????? | | ?????????????????????????? #??????? | | ?????????????????????????? #??????? | | ?????????????????????????##g #??????? | | ????????????????????????## #??????? | | ???????????????????????## ##?????? | | ???????????????????????# #?????? | | ??????????????????????## @ #?????? | | ????????????????????### #?????? | | ???????????????????## ##?????? | | ???????????????????# ###??????? | | ??????????????????# ##????????? | | ??????????????????# #?????????? | | ????????????????? ##?????????? | | ???????????????# ### ####??????????? | | ???????????????#???###??????????????? | | ????????????????????????????????????? | | ????????????????????????????????????? | | ????????????????????????????????????? | | ????????????????????????????????????? | | ????????????????????????????????????? | | ????????????????????????????????????? | | ????????????????????????????????????? | | ????????????????????????????????????? | | ????????????????????????????????????? | | ????????????????????????????????????? | | ????????????????????????????????????? | | ????????????????????????????????????? | | ????????????????????????????????????? | | ????????????????????????????????????? | | | | | +----------------------------------------------------+ Best States ------------- Heat Dissipation 28 Energy Generation 12 Energy Capacity 265 Matter Stores 450 Matter Capacity 450 Sight Range 16 Terrain Scan Density 10 Armor Coverage 150 Resistance: KI 35 Resistance: TH 35 Resistance: EX 35 Resistance: EM 35 Resistance: I 35 Resistance: S 35 Resistance: P 35 Core Shielding 20 Weapon Shielding 33 Evasion (%) 55 Targeting Accuracy 5 Offensive Hacking 20 Item Schematics ----------------- None Robot Schematics ------------------ None Fabricated ------------ Nothing Alien Tech Used ----------------- None Achievements -------------- None Challenges ------------ None Game ------ Seed GravmagRestorationTerminator Manual? 0 Play Time 00:14:54 Cumulative 33.5 hours Start 2024.06.29 @ 07:06:03 End 2024.06.29 @ 07:27:53 Sessions 1 Manual Loads 0 Difficulty Explorer Special Mode None Game No. 82 Rogue 20 Adventurer 46 Explorer 16 Win Type - Total 0 Types 0/0/0/0/0/0/0/0/0 Lore% 10 Gallery% 34 Achievement% 24 Wizard Run 0 Options --------- Layout 1 ASCII 0 Keyboard 0 Movement Mouse Keybinds 0 Fullscreen 1 Font 24/Smallcaps Map View 50x35 Zoom Use 0% Tactical HUD 1 Map Filters NONE Filters NONE Steam 1 RUN: 6d52d278-cb38-4369-8d34-ad2af2c97641